bitfinex/quotes_SOLUSD_20241024
["timestamp","ask_amount","ask_price","bid_price","bid_amount"]
[1729793624154,0.1,176.0,175.98,20.09943534]
[1729793625477,16.2533,176.01,175.98,20.09943534]
[1729793626050,16.1533,176.01,175.98,20.09943534]
[1729793626371,16.2533,176.01,175.98,20.09943534]
[1729793628047,16.2533,176.01,175.99,20.09943534]
[1729793628662,16.2533,176.01,175.98,20.09943534]
[1729793629379,16.2533,176.01,175.99,20.09943534]
[1729793629577,16.1533,176.01,175.99,20.09943534]
[1729793629770,16.2533,176.01,175.99,20.09943534]
[1729793631064,16.1533,176.01,175.99,20.09943534]
[1729793631263,16.2533,176.01,175.99,20.09943534]
[1729793631666,0.1,176.01,176.0,20.09943534]
[1729793632585,0.1,176.01,175.99,20.09943534]
[1729793633589,0.16174474,176.02,175.99,20.09943534]
[1729793633885,0.1,176.01,175.99,20.09943534]
[1729793634180,0.1,176.01,175.98,20.09943534]
[1729793635388,0.1,176.01,175.99,20.09943534]
[1729793635985,0.16174474,176.02,175.99,20.09943534]
[1729793636191,0.1,176.01,175.99,20.09943534]
[1729793636484,0.1,176.01,175.88,0.12549]
[1729793636683,0.1,176.01,175.99,20.09943534]
[1729793641091,0.1,176.01,175.98,20.09943534]
[1729793641284,0.1,176.01,175.99,20.09943534]
[1729793641891,0.16174474,176.02,175.99,20.09943534]
[1729793642080,0.1,176.01,175.99,20.09943534]
[1729793642891,0.16174474,176.02,175.99,20.09943534]
[1729793643193,0.1,176.02,176.0,20.09943534]
[1729793644295,0.1,176.02,176.01,10.04971767]
[1729793644478,0.1,176.04,176.01,20.09943534]
[1729793644685,15.81794474,176.06,176.03,20.09943534]
[1729793646179,0.06174474,176.05,176.03,20.09943534]
[1729793646388,0.16174474,176.05,176.03,20.09943534]
[1729793646597,15.7562,176.06,176.03,20.09943534]
[1729793646789,15.81794474,176.06,176.03,20.09943534]
[1729793647108,15.7562,176.06,176.03,20.09943534]
[1729793648693,15.81794474,176.06,176.03,20.09943534]
[1729793648898,0.1,176.05,176.03,20.09943534]
[1729793649197,0.1,176.03,176.02,20.09943534]
[1729793649397,0.16174474,176.03,175.99,20.09943534]
[1729793649989,0.16174474,176.05,176.02,20.09943534]
[1729793650297,0.16174474,176.03,176.01,20.09943534]
[1729793652107,0.1,176.03,176.01,20.09943534]
[1729793652899,0.16174474,176.03,176.01,20.09943534]
[1729793653088,0.1,176.03,176.01,20.09943534]
[1729793653900,0.16174474,176.04,176.01,20.09943534]
[1729793654102,15.7562,176.06,176.02,20.09943534]
[1729793654303,15.7562,176.06,176.05,20.09943534]
[1729793654621,15.81794474,176.06,176.04,20.09943534]
[1729793654797,0.06174474,176.05,176.04,20.09943534]
[1729793655098,0.06174474,176.05,176.03,20.09943534]
[1729793655286,0.16174474,176.05,176.03,20.09943534]
[1729793655799,0.06174474,176.04,176.03,20.09943534]
[1729793656002,0.06174474,176.04,176.02,20.09943534]
[1729793656704,0.16174474,176.05,176.02,20.09943534]
[1729793656900,0.16174474,176.05,176.04,20.09943534]
[1729793656901,0.1,176.05,176.04,20.09943534]
[1729793657113,15.81794474,176.06,176.04,20.09943534]
[1729793657406,15.71794474,176.06,176.04,20.09943534]
[1729793657592,15.6562,176.06,176.05,20.09943534]
[1729793657786,6.4586,176.07,176.05,20.09943534]
[1729793658186,6.3586,176.07,176.05,20.09943534]
[1729793658401,0.1,176.06,176.05,20.09943534]
[1729793660109,6.4586,176.07,176.05,20.09943534]
[1729793660687,0.06174474,176.06,176.04,20.09943534]
[1729793660895,0.16174474,176.06,176.03,20.09943534]
[1729793661509,0.06174474,176.06,176.03,20.09943534]
[1729793661704,0.16174474,176.06,176.03,20.09943534]
[1729793663013,0.16174474,176.06,176.04,20.09943534]
[1729793663386,0.16174474,176.06,175.97,0.12549]
[1729793663387,0.06174474,176.08,176.05,20.09943534]
[1729793663590,0.1,176.09,176.07,20.09943534]
[1729793664097,0.16174474,176.08,176.07,20.09943534]
[1729793664289,0.1,176.07,176.06,20.09943534]
[1729793667209,0.06174474,176.08,176.06,20.09943534]
[1729793667413,0.1,176.07,176.06,20.09943534]
[1729793667616,0.06174474,176.08,176.06,20.09943534]
[1729793667803,0.16174474,176.08,176.07,20.09943534]
[1729793668690,0.16174474,176.08,175.97,0.12549]
[1729793668691,0.16174474,176.08,175.97,23.902374]
[1729793668903,0.16174474,176.08,176.07,20.09943534]
[1729793669103,0.1,176.07,176.06,20.09943534]
[1729793672919,0.1,176.08,176.06,20.09943534]
[1729793673122,0.16174474,176.08,176.07,20.09943534]
[1729793674323,0.06174474,176.08,176.07,20.09943534]
[1729793674515,0.16174474,176.08,176.07,20.09943534]
[1729793674713,0.06174474,176.08,176.07,20.09943534]
[1729793675112,0.16174474,176.08,176.07,20.09943534]
[1729793677027,0.06174474,176.06,175.97,0.12549]
[1729793677235,0.16174474,176.06,176.05,20.09943534]
[1729793677525,0.16174474,176.05,176.04,20.09943534]
[1729793677919,0.1,176.05,176.04,20.09943534]
[1729793678624,0.1,176.07,176.04,100.4971767]
[1729793678818,0.1,176.07,176.06,20.09943534]
[1729793682926,0.06174474,176.08,176.06,20.09943534]
[1729793683128,0.06174474,176.08,176.07,20.09943534]
[1729793683427,0.1,176.08,176.07,20.09943534]
[1729793684522,0.06174474,176.08,176.07,20.09943534]
[1729793684735,0.1,176.08,176.07,20.09943534]
[1729793685023,0.16174474,176.09,176.07,20.09943534]
[1729793685232,0.1,176.08,176.07,20.09943534]
[1729793685408,0.16174474,176.08,176.07,20.09943534]
[1729793686325,0.16174474,176.08,175.96,0.12549]
[1729793686532,0.16174474,176.08,176.07,20.09943534]
[1729793689131,0.06174474,176.08,176.07,20.09943534]
[1729793689431,0.16174474,176.08,176.07,20.09943534]
[1729793695418,0.1,176.09,176.07,20.09943534]
[1729793695619,0.1,176.09,176.08,20.09943534]
[1729793696426,0.1,176.1,176.08,20.09943534]
[1729793696735,0.1,176.1,176.04,80.39774136]
[1729793696736,0.1,176.11,176.09,20.09943534]
[1729793696924,0.1,176.11,176.1,20.09943534]
[1729793697316,0.06174474,176.12,176.1,20.09943534]
[1729793697317,0.16174474,176.12,176.1,20.09943534]
[1729793697527,0.1,176.12,176.11,20.09943534]
[1729793698641,0.16174474,176.12,176.11,20.09943534]
[1729793700341,0.06174474,176.12,176.11,20.09943534]
[1729793700842,0.1,176.11,176.05,24.027864]
[1729793701035,0.1,176.1,176.05,0.25098]
[1729793701222,0.1,176.1,176.09,20.09943534]
[1729793701936,0.1,176.1,176.05,0.25098]
[1729793702143,0.1,176.1,176.09,20.09943534]
[1729793702340,0.16174474,176.11,176.09,20.09943534]
[1729793702722,0.16174474,176.11,176.1,20.09943534]
[1729793703029,0.16174474,176.11,176.05,0.25098]
[1729793703030,0.16174474,176.07,176.05,20.09943534]
[1729793703233,0.1,176.07,176.06,20.09943534]
[1729793703717,0.16174474,176.07,176.06,20.09943534]
[1729793705335,0.06174474,176.07,176.06,20.09943534]
[1729793705638,0.16174474,176.04,175.96,23.776884]
[1729793705850,0.16174474,176.04,175.95,83.25498753]
[1729793705851,0.06174474,176.03,175.95,83.25498753]
[1729793706014,0.1,176.04,176.02,20.09943534]
[1729793706015,0.16174474,176.04,176.02,20.09943534]
[1729793706353,0.16174474,176.04,176.03,20.09943534]
[1729793706525,0.16174474,176.04,176.02,20.09943534]
[1729793707444,0.16174474,176.04,176.03,20.09943534]
[1729793708032,0.1,176.04,176.03,20.09943534]
[1729793708343,0.16174474,176.04,176.03,20.09943534]
[1729793708854,0.16174474,176.04,175.96,23.902374]
[1729793709020,0.16174474,176.04,176.03,20.09943534]
[1729793711351,0.06174474,176.04,176.03,20.09943534]
[1729793711542,0.16174474,176.04,176.03,20.09943534]
[1729793712549,0.16174474,176.04,176.02,20.09943534]
[1729793712930,0.16174474,176.04,176.03,20.09943534]
[1729793713626,0.1,176.04,176.03,20.09943534]
[1729793713827,0.16174474,176.04,176.03,20.09943534]
[1729793714029,0.06174474,176.04,176.03,20.09943534]
[1729793714349,0.16174474,176.05,176.03,20.09943534]
[1729793714544,0.1,176.05,176.04,20.09943534]
[1729793714747,0.1,176.06,176.04,20.09943534]
[1729793714949,0.16174474,176.06,176.05,20.09943534]
[1729793715442,0.16174474,176.07,176.05,20.09943534]
[1729793715639,0.1,176.07,176.06,20.09943534]
[1729793715942,0.1,176.08,176.06,20.09943534]
[1729793716148,0.1,176.08,176.07,20.09943534]
[1729793717851,0.16174474,176.08,176.06,20.09943534]
[1729793718738,0.1,176.07,176.06,20.09943534]
[1729793721334,0.16174474,176.07,176.06,20.09943534]
[1729793723227,0.16174474,176.07,176.05,20.09943534]
[1729793724250,0.16174474,176.07,176.06,20.09943534]
[1729793724933,0.06174474,176.07,176.06,20.09943534]
[1729793725129,0.06174474,176.02,175.84,90.099435]
[1729793725329,0.16174474,176.0,175.91,2.6759702]
[1729793725534,0.16174474,176.0,175.87,7.05965721]
[1729793725746,0.16174474,176.0,175.98,20.09943534]
[1729793726260,0.16174474,176.0,175.99,20.09943534]
[1729793728255,0.16174474,176.0,175.89,24.027864]
[1729793728435,0.06174474,176.0,175.99,20.09943534]
[1729793728636,0.06174474,175.98,175.89,0.12549]
[1729793728865,0.1,175.96,175.86,83.08521404]
[1729793729156,0.1,175.96,175.95,20.09943534]
[1729793729356,0.16174474,175.97,175.95,20.09943534]
[1729793729559,0.1,175.99,175.96,20.09943534]
[1729793729858,0.06174474,176.0,175.98,10.04971767]
[1729793730040,0.06174474,176.0,175.98,20.09943534]
[1729793730246,0.1,175.99,175.95,80.39774136]
[1729793730443,0.06174474,176.0,175.95,80.39774136]
[1729793730635,0.16174474,176.0,175.99,20.09943534]
[1729793731639,0.06174474,176.0,175.99,20.09943534]
[1729793731840,0.16174474,176.0,175.99,20.09943534]
[1729793732257,0.06174474,176.0,175.99,20.09943534]
[1729793732637,0.16174474,176.0,175.99,20.09943534]
[1729793733749,0.06174474,176.0,175.99,20.09943534]
[1729793734636,0.16174474,176.01,175.99,20.09943534]
[1729793734843,0.06174474,176.0,175.95,80.39774136]
[1729793735061,0.1,175.99,175.95,80.39774136]
[1729793736552,0.1,175.99,175.98,20.09943534]
[1729793736753,0.06174474,176.0,175.98,20.09943534]
[1729793737663,0.1,175.99,175.87,0.37647]
[1729793737851,0.1,175.99,175.98,20.09943534]
[1729793738458,0.16174474,176.0,175.98,20.09943534]
[1729793738652,0.16174474,176.0,175.99,20.09943534]
[1729793739867,0.16174474,176.0,175.95,80.39774136]
[1729793740165,21.6099,176.03,175.99,20.09943534]
[1729793740339,0.16174474,176.04,176.02,20.09943534]
[1729793740545,0.1,176.04,176.03,20.09943534]
[1729793742661,0.16174474,176.05,176.03,20.09943534]
[1729793742856,0.16174474,176.05,176.04,20.09943534]
[1729793743169,0.1,176.05,176.04,20.09943534]
[1729793743470,0.16174474,176.05,176.04,20.09943534]
[1729793750565,0.16174474,176.04,175.97,0.25098]
[1729793750764,0.16174474,176.04,176.03,20.09943534]
[1729793751467,0.06174474,176.02,175.97,0.12549]
[1729793751668,0.16174474,176.01,175.95,80.39774136]
[1729793751874,0.16174474,176.01,176.0,10.04971767]
[1729793753557,0.16174474,176.01,176.0,20.09943534]
[1729793755160,0.1,176.01,176.0,20.09943534]
[1729793755360,0.16174474,176.01,176.0,20.09943534]
[1729793755974,0.1,176.02,176.0,20.09943534]
[1729793756178,0.06174474,176.04,176.01,20.09943534]
[1729793756375,0.06174474,176.04,176.03,20.09943534]
[1729793756677,0.16174474,176.04,176.03,20.09943534]
[1729793759464,0.06174474,176.04,176.03,20.09943534]
[1729793759686,0.16174474,176.04,176.03,20.09943534]
[1729793760377,0.1,176.04,176.03,20.09943534]
[1729793760779,0.06174474,176.05,176.03,20.09943534]
[1729793760971,22.79804474,176.07,176.04,20.09943534]
[1729793761171,22.7363,176.07,176.04,20.09943534]
[1729793761378,22.7363,176.07,176.06,20.09943534]
[1729793761778,22.79804474,176.07,176.06,20.09943534]
[1729793762476,0.06174474,176.07,176.06,20.09943534]
[1729793762883,0.16174474,176.07,176.06,20.09943534]
[1729793763582,0.16174474,176.09,176.06,20.09943534]
[1729793763765,0.16174474,176.09,176.08,20.09943534]
[1729793763963,21.9631,176.11,176.08,20.09943534]
[1729793763964,22.12484474,176.11,176.08,20.09943534]
[1729793764277,0.06174474,176.1,176.05,0.12549]
[1729793764481,22.12484474,176.11,176.05,0.12549]
[1729793764697,21.9631,176.11,176.05,0.12549]
[1729793764882,0.06174474,176.1,176.05,0.12549]
[1729793765183,0.16174474,176.1,176.08,20.09943534]
[1729793765385,0.06174474,176.09,176.08,20.09943534]
[1729793766369,21.9631,176.11,176.08,20.09943534]
[1729793766595,0.06174474,176.12,176.1,20.09943534]
[1729793766778,0.06174474,176.12,176.09,20.09943534]
[1729793766779,0.16174474,176.12,176.09,20.09943534]
[1729793766975,0.1,176.1,176.09,20.09943534]
[1729793767686,0.06174474,176.11,176.09,20.09943534]
[1729793767897,0.1,176.1,176.09,20.09943534]
[1729793768083,0.16174474,176.1,175.95,84.66112773]
[1729793768396,0.16174474,176.08,176.07,20.09943534]
[1729793769389,0.06174474,176.08,176.07,20.09943534]
[1729793769870,0.16174474,176.08,176.07,20.09943534]
[1729793770072,0.16174474,176.08,175.98,0.12549]
[1729793770273,0.16174474,176.08,176.07,20.09943534]
[1729793773406,0.06174474,176.08,176.07,20.09943534]
[1729793773597,0.16174474,176.08,176.07,20.09943534]
[1729793774717,11.93888008,176.13,176.07,20.09943534]
[1729793774906,21.98859775,176.13,176.07,20.09943534]
[1729793776826,20.09943534,176.12,176.07,20.09943534]
[1729793777113,42.74643534,176.11,176.06,20.09943534]
[1729793777619,10.04971767,176.1,175.98,2.77917693]
[1729793777916,20.37647,176.1,176.02,20.09943534]
[1729793778217,44.00180934,176.1,176.04,20.09943534]
[1729793778519,44.00180934,176.1,176.05,20.09943534]
[1729793778720,43.87631934,176.1,176.05,20.09943534]
[1729793778919,5.6787,176.1,176.06,20.09943534]
[1729793779411,28.3252,176.11,176.07,20.09943534]
[1729793779620,28.3252,176.11,176.06,20.09943534]
[1729793780017,48.42463534,176.11,176.06,20.09943534]
[1729793781222,42.74643534,176.11,176.06,20.09943534]
[1729793781518,48.42473534,176.11,176.06,20.09943534]
[1729793782232,48.42473534,176.11,176.05,20.09943534]
[1729793782522,20.09943534,176.1,176.05,20.09943534]
[1729793783017,25.77813534,176.1,176.05,20.09943534]
[1729793783206,20.09943534,176.09,176.04,20.09943534]
[1729793783407,20.09943534,176.08,176.03,20.09943534]
[1729793783602,20.09943534,176.08,176.02,20.09943534]
[1729793784123,20.09943534,176.07,176.02,20.09943534]
[1729793784421,41.37383534,176.05,176.0,20.09943534]
[1729793785816,20.09943534,176.03,175.92,5.9209684]
[1729793786023,26.9546,176.05,175.97,20.09943534]
[1729793786024,20.09943534,176.02,175.97,20.09943534]
[1729793787012,25.78063534,176.02,175.97,20.09943534]
[1729793787524,25.78063534,176.02,175.96,20.09943534]
[1729793788507,20.09943534,176.02,175.97,20.09943534]
[1729793788708,25.78033534,176.03,175.98,20.09943534]
[1729793789746,20.09943534,176.03,175.98,20.09943534]
[1729793789902,41.37383534,176.05,176.0,20.09943534]
[1729793790518,47.05413534,176.05,176.0,20.09943534]
[1729793790719,20.09943534,176.03,175.98,20.09943534]
[1729793792705,20.09943534,176.03,175.97,20.09943534]
[1729793792706,20.09943534,176.02,175.97,20.09943534]
[1729793793409,5.6808,176.03,175.97,20.09943534]
[1729793793603,25.78023534,176.03,175.98,20.09943534]
[1729793794104,20.09943534,176.02,175.97,20.09943534]
[1729793795213,20.09943534,176.01,175.96,20.09943534]
[1729793795518,20.09943534,176.01,175.95,20.09943534]
[1729793796118,20.09943534,176.0,175.95,20.09943534]
[1729793797422,36.00303534,175.99,175.89,2.76016469]
[1729793797619,20.09943534,175.97,175.86,5.92415913]
[1729793797824,20.09943534,175.97,175.92,20.09943534]
[1729793799213,25.78183534,175.98,175.93,20.09943534]
[1729793799526,5.6824,175.98,175.94,20.09943534]
[1729793800323,25.78183534,175.98,175.93,20.09943534]
[1729793802334,28.0394,175.99,175.94,20.09943534]
[1729793802516,48.13883534,175.99,175.94,20.09943534]
[1729793802838,22.3572,175.99,175.95,20.09943534]
[1729793810031,23.776884,176.03,175.98,20.09943534]
[1729793810233,20.09943534,176.02,175.88,0.35098]
[1729793810526,20.09943534,176.01,175.95,20.09943534]
[1729793812255,20.09943534,176.01,175.96,20.09943534]
[1729793812635,5.6812,176.02,175.96,20.09943534]
[1729793812846,20.09943534,176.01,175.96,20.09943534]
[1729793814246,25.78063534,176.02,175.96,20.09943534]
[1729793815350,20.09943534,176.02,175.96,20.09943534]
[1729793816729,20.09943534,176.02,175.97,20.09943534]
[1729793817327,49.55721934,176.03,175.98,20.09943534]
[1729793819131,22.9614,176.04,176.01,20.09943534]
[1729793819436,22.9614,176.04,176.0,20.09943534]
[1729793820256,22.9614,176.04,175.99,20.09943534]
[1729793820732,20.09943534,176.02,175.96,20.09943534]
[1729793820927,20.09943534,176.0,175.9,2.73899058]
[1729793821140,20.09943534,175.99,175.87,23.876884]
[1729793821346,20.09943534,175.99,175.94,20.09943534]
[1729793823347,20.09943534,176.0,175.94,20.09943534]
[1729793823542,20.09943534,176.0,175.95,20.09943534]
[1729793825227,22.4243,175.99,175.94,20.09943534]
[1729793825538,42.52373534,175.99,175.93,20.09943534]
[1729793828449,20.09943534,175.98,175.93,20.09943534]
[1729793828833,20.09943534,175.96,175.91,20.09943534]
[1729793829431,20.09943534,175.96,175.85,5.91538903]
[1729793829654,20.09943534,175.95,175.9,20.09943534]
[1729793834642,20.09943534,175.95,175.85,0.12549]
[1729793834949,20.09943534,175.95,175.9,20.09943534]
[1729793836952,6.5028,175.94,175.9,20.09943534]
[1729793837254,20.09943534,175.92,175.87,20.09943534]
[1729793838134,35.72443534,175.93,175.88,20.09943534]
[1729793839048,15.625,175.93,175.89,20.09943534]
[1729793840163,35.72443534,175.93,175.88,20.09943534]
[1729793843556,15.625,175.93,175.88,20.09943534]
[1729793843860,35.72443534,175.93,175.88,20.09943534]
[1729793845047,6.5028,175.94,175.92,20.09943534]
[1729793861269,6.5028,175.94,175.9,20.09943534]
[1729793863771,6.5028,175.94,175.91,20.09943534]
[1729793865563,6.5028,175.94,175.92,20.09943534]
[1729793866872,16.6605,175.97,175.93,20.09943534]
[1729793867078,5.91821701,175.99,175.96,20.09943534]
[1729793867256,23.2418,176.02,175.88,0.25098]
[1729793867257,43.34123534,176.02,175.88,0.25098]
[1729793867450,20.09943534,175.99,175.93,10.04971767]
[1729793867859,20.09943534,175.98,175.88,0.12549]
[1729793868060,20.09943534,175.99,175.93,20.09943534]
[1729793868473,25.78173534,175.99,175.93,20.09943534]
[1729793868682,23.902374,175.98,175.93,20.09943534]
[1729793868980,44.00180934,175.98,175.93,20.09943534]
[1729793869870,20.09943534,176.01,175.95,20.09943534]
[1729793870073,5.6815,176.01,175.96,20.09943534]
[1729793870273,5.6815,176.01,175.97,20.09943534]
[1729793870458,0.12549,176.01,175.97,20.09943534]
[1729793870773,0.12549,176.01,175.98,20.09943534]
[1729793870976,0.12549,176.01,175.97,20.09943534]
[1729793871358,23.902374,176.01,175.97,20.09943534]
[1729793871779,29.583874,176.01,175.97,20.09943534]
[1729793873285,49.68330934,176.01,175.87,0.22549]
[1729793873465,49.68330934,176.01,175.96,20.09943534]
[1729793874981,29.583874,176.01,175.97,20.09943534]
[1729793876081,23.902374,176.01,175.88,0.12549]
[1729793876282,23.902374,176.01,175.97,20.09943534]
[1729793877255,29.583974,176.01,175.97,20.09943534]
[1729793878562,49.68340934,176.01,175.96,10.04971767]
[1729793878769,49.68340934,176.01,175.96,20.09943534]
[1729793878969,44.00180934,175.99,175.94,20.09943534]
[1729793879184,20.22492534,175.99,175.94,20.09943534]
[1729793879872,20.22492534,175.99,175.86,83.13089099]
[1729793879873,23.776884,175.98,175.86,83.13089099]
[1729793880089,29.459284,175.98,175.93,20.09943534]
[1729793880385,29.459284,175.98,175.86,83.13089099]
[1729793880386,59.36991934,175.96,175.91,20.09943534]
[1729793880681,59.36991934,175.96,175.83,5.91199066]
[1729793880682,23.776884,175.94,175.83,5.91199066]
[1729793880892,23.776884,175.94,175.89,20.09943534]
[1729793881180,23.776884,175.94,175.9,20.09943534]
[1729793883969,22.142,175.96,175.93,20.09943534]
[1729793884373,22.142,175.96,175.92,20.09943534]
[1729793884772,22.142,175.96,175.94,20.09943534]
[1729793885264,45.957474,176.0,175.94,20.09943534]
[1729793885466,20.09943534,175.99,175.94,20.09943534]
[1729793886581,22.0551,176.0,175.96,20.09943534]
[1729793887377,22.0551,176.0,175.97,20.09943534]
[1729793888574,0.12549,175.99,175.87,0.25098]
[1729793888778,0.12549,175.99,175.87,0.12549]
[1729793888779,20.09943534,175.98,175.87,0.12549]
[1729793888988,23.902374,175.97,175.92,20.09943534]
[1729793889989,29.585174,175.97,175.92,20.09943534]
[1729793890482,29.585174,175.97,175.93,20.09943534]
[1729793894815,5.6822,175.99,175.95,20.09943534]
[1729793895086,22.0551,176.0,175.98,20.09943534]
[1729793896273,22.0551,176.0,175.87,0.22549]
[1729793896274,27.737,176.0,175.96,20.09943534]
[1729793901070,21.7892,176.04,175.99,20.09943534]
[1729793901396,21.7892,176.04,176.01,20.09943534]
[1729793901686,0.12549,176.03,176.01,20.09943534]
[1729793902793,23.902374,176.03,176.01,20.09943534]
[1729793902985,29.583174,176.03,176.0,20.09943534]
[1729793903289,49.68260934,176.03,175.98,20.09943534]
[1729793904193,29.583174,176.03,175.98,20.09943534]
[1729793906500,49.68260934,176.03,175.98,20.09943534]
[1729793911798,49.68260934,176.03,175.97,20.09943534]
[1729793917994,10.17520767,176.01,175.87,5.87280124]
[1729793918191,20.09943534,175.95,175.87,5.87280124]
[1729793918396,20.09943534,175.95,175.9,20.09943534]
[1729793918905,19.59943534,175.95,175.9,20.09943534]
[1729793919204,20.09943534,175.96,175.9,20.09943534]
[1729793919403,20.09943534,175.96,175.91,20.09943534]
[1729793922795,20.09943534,175.96,175.9,20.09943534]
[1729793924220,0.12549,175.97,175.92,20.09943534]
[1729793924424,44.00180934,175.97,175.92,20.09943534]
[1729793924608,20.09943534,175.96,175.91,20.09943534]
[1729793925313,20.09943534,175.96,175.9,20.09943534]
[1729793926016,21.3187,175.98,175.94,20.09943534]
[1729793926203,25.78053534,176.02,175.97,20.09943534]
[1729793926694,25.78053534,176.02,175.97,10.04971767]
[1729793926894,20.09943534,176.01,175.96,20.09943534]
[1729793931732,25.78053534,176.02,175.96,20.09943534]
[1729793931895,21.3187,176.03,175.98,20.09943534]
[1729793932101,21.3187,176.03,176.0,20.09943534]
[1729793932624,21.3187,176.03,175.99,20.09943534]
[1729793933204,21.3187,176.03,176.0,20.09943534]
[1729793933903,21.3187,176.03,175.95,51.8371767]
[1729793934105,21.3187,176.03,176.0,20.09943534]
[1729793934315,21.3187,176.03,175.99,20.09943534]
[1729793935815,21.3187,176.03,175.9,0.22549]
[1729793936122,21.3187,176.03,175.99,20.09943534]
[1729793936524,25.78013534,176.04,175.95,80.39774136]
[1729793936525,5.6797,176.07,176.0,20.09943534]
[1729793936818,25.77913534,176.07,176.02,20.09943534]
[1729793937001,0.12549,176.06,176.02,20.09943534]
[1729793937813,5.80539,176.06,176.02,20.09943534]
[1729793938324,5.80539,176.06,176.01,20.09943534]
[1729793938325,25.90482534,176.06,176.01,20.09943534]
[1729793941423,25.90482534,176.06,176.0,20.09943534]
[1729793942124,25.90482534,176.06,176.01,20.09943534]
[1729793943822,5.80539,176.06,176.01,20.09943534]
[1729793945601,25.90482534,176.06,176.01,20.09943534]
[1729793946007,5.80539,176.06,176.01,20.09943534]
[1729793948511,25.90482534,176.06,176.01,20.09943534]
[1729793948717,25.90482534,176.06,176.0,20.09943534]
[1729793949838,20.09943534,176.05,175.94,2.70426969]
[1729793950134,20.09943534,176.05,176.0,20.09943534]
[1729793951115,25.77963534,176.05,176.0,20.09943534]
[1729793951511,20.09943534,176.04,175.98,20.09943534]
[1729793951715,20.09943534,176.01,175.88,0.1]
[1729793951922,20.09943534,176.01,175.96,20.09943534]
[1729793953926,20.09943534,176.0,175.95,20.09943534]
[1729793954123,20.09943534,176.0,175.88,0.35098]
[1729793954323,20.09943534,176.0,175.94,20.09943534]
[1729793956043,20.09943534,176.0,175.95,20.09943534]
[1729793961241,25.78093534,176.01,175.96,20.09943534]
[1729793961538,21.896,176.02,176.0,20.09943534]
[1729793961743,5.6806,176.04,176.0,20.09943534]
[1729793962536,25.78003534,176.04,175.99,20.09943534]
[1729793963937,5.6806,176.04,175.99,20.09943534]
[1729793964138,25.78003534,176.04,175.99,20.09943534]
[1729793968644,25.78003534,176.04,175.98,20.09943534]
[1729793969150,5.6806,176.04,175.99,20.09943534]
[1729793969344,25.78003534,176.04,175.99,20.09943534]
[1729793969867,3.0,176.0,175.99,20.09943534]
[1729793975028,3.0,176.0,175.98,20.09943534]
[1729793975445,3.0,176.0,175.99,20.09943534]
[1729793978132,3.0,176.0,175.91,0.25098]
[1729793978336,3.0,176.0,175.98,20.09943534]
[1729793979150,3.0,176.0,175.99,20.09943534]
[1729793986054,3.0,176.0,175.98,20.09943534]
[1729793987151,3.0,176.0,175.9,2.67786637]
[1729793987345,20.09943534,175.99,175.89,5.8853543]
[1729793987543,20.09943534,175.99,175.93,20.09943534]
[1729793988048,25.78153534,175.99,175.94,20.09943534]
[1729793988257,5.6821,175.99,175.94,20.09943534]
[1729793989057,28.78133534,176.0,175.95,20.09943534]
[1729793992957,28.78133534,176.0,175.94,20.09943534]
[1729793993348,28.78133534,176.0,175.86,80.49774136]
[1729793993349,20.09943534,175.96,175.9,20.09943534]
[1729793993541,20.09943534,175.95,175.84,8.60246938]
[1729793993850,20.09943534,175.95,175.89,20.09943534]
[1729793995938,20.09943534,175.95,175.9,20.09943534]
[1729794000054,24.8896,176.0,175.94,20.09943534]
[1729794000353,24.8896,176.0,175.97,20.09943534]
[1729794001353,24.8896,176.0,175.96,20.09943534]
[1729794002960,44.98903534,176.0,175.87,24.027864]
[1729794003263,20.09943534,175.98,175.93,20.09943534]
[1729794003459,20.09943534,175.96,175.87,0.12549]
[1729794003648,20.09943534,175.96,175.91,20.09943534]
[1729794004044,20.09943534,175.94,175.84,2.71235343]
[1729794004240,25.78253534,175.96,175.91,20.09943534]
[1729794005242,5.6831,175.96,175.91,20.09943534]
[1729794005439,25.78153534,175.99,175.94,20.09943534]
[1729794005865,23.902374,175.98,175.93,20.09943534]
[1729794006157,20.09943534,175.94,175.82,23.902374]
[1729794006366,20.09943534,175.94,175.88,20.09943534]
[1729794006738,20.37647,175.97,175.88,20.09943534]
[1729794007065,0.12549,175.95,175.9,20.09943534]
[1729794007253,23.902374,175.95,175.9,20.09943534]
[1729794007756,44.00180934,175.95,175.9,20.09943534]
[1729794009258,49.68540934,175.95,175.82,0.12549]
[1729794009470,49.68540934,175.95,175.89,20.09943534]
[1729794010761,23.902374,175.95,175.91,20.09943534]
[1729794010959,20.22492534,175.95,175.9,20.09943534]
[1729794011468,20.22492534,175.95,175.89,20.09943534]
[1729794012475,20.22492534,175.95,175.9,20.09943534]